[Event "Czech Youth U14 Girls 2024"]
[Site "Kouty nad Desnou"]
[Date "2024.03.11"]
[Round "4.9"]
[White "Sochorova, Valentyna"]
[Black "Hladka, Leontyna"]
[Result "0-1"]
[ECO "C21"]
[WhiteElo "1485"]
[BlackElo "1683"]
[Annotator "NA RC"]
[PlyCount "64"]
[EventDate "2024.03.10"]
[EventType "swiss"]
[EventCountry "CZE"]
[SourceTitle "playchess.com"]
[Source "ChessBase"]
[SourceQuality "1"]
[TimeControl "40/5400+30:1800+30"]

1. e4 {[%emt 0:00:04]} e5 {[%emt 0:00:08]} 2. d4 {[%emt 0:00:25]} exd4 {[%emt 0:00:08]} 3. Bc4 {[%emt 0:00:10]} Bb4+ {[%emt 0:01:50]} 4. c3 {[%emt 0:00:47]} dxc3 {[%emt 0:00:38]} 5. bxc3 {[%emt 0:00:27]} Bc5 {[%emt 0:01:39]} 6. Bxf7+ {[%emt 0:02:11]} Kxf7 {[%emt 0:00:19]} 7. Qh5+ {[%emt 0:01:51]} Kf8 {[%emt 0:01:09]} 8. Qxc5+ {[%emt 0:00:44]} d6 {[%emt 0:00:49]} 9. Qc4 {[%emt 0:05:33]} Qe7 {[%emt 0:04:05]} 10. Nf3 {[%emt 0:11:46]} Be6 {[%emt 0:01:56]} 11. Qd3 {[%emt 0:03:32]} Nd7 {[%emt 0:03:56]} 12. O-O {[%emt 0:05:04]} Nc5 {[%emt 0:02:10]} 13. Qd4 {[%emt 0:06:00]} Bg4 {[%emt 0:05:55]} 14. Ba3 {[%emt 0:19:14]} Bxf3 {[%emt 0:11:59]} 15. gxf3 {[%emt 0:00:55]} Ne6 {[%emt 0:04:08]} 16. Qc4 {[%emt 0:31:31]} c5 {[%emt 0:04:35]} 17. Kh1 {[%emt 0:02:33]} Nf6 {[%emt 0:02:48]} 18. Re1 {[%emt 0:02:32]} Nd7 {[%emt 0:06:02]} 19. Qd5 {[%emt 0:03:25]} Ne5 {[%emt 0:06:06]} 20. Nd2 {[%emt 0:01:07]} Nf4 {[%emt 0:02:06]} 21. Qb3 {[%emt 0:00:14]} Ned3 {[%emt 0:07:34]} 22. Nf1 {[%emt 0:00:52]} Nxf2+ {[%emt 0:03:22]} 23. Kg1 {[%emt 0:00:01]} N2h3+ {[%emt 0:06:12]} 24. Kh1 {[%emt 0:00:06]} h5 {[%emt 0:07:10]} 25. Bc1 {[%emt 0:01:01]} Qg5 {[%emt 0:06:54]} 26. Ng3 {[%emt 0:00:04]} h4 {[%emt 0:00:56]} 27. Qxb7 {[%emt 0:01:14]} Re8 {[%emt 0:00:21]} 28. Bxf4 {[%emt 0:00:36]} Nxf4 {[%emt 0:00:44]} 29. Rg1 {[%emt 0:00:14]} hxg3 {[%emt 0:00:19]} 30. Rxg3 {[%emt 0:00:14]} Qxg3 {[%emt 0:00:13]} 31. Qxg7+ {[%emt 0:00:54]} Kxg7 {[%emt 0:00:28]} 32. Rg1 {[%emt 0:00:11]} Rxh2# {[%emt 0:00:09]} 0-1

[Event "Czech Youth U14 Girls 2024"]
[Site "Kouty nad Desnou"]
[Date "2024.03.11"]
[Round "4.10"]
[White "Kavanova, Valentyna"]
[Black "Archlebova, Eva"]
[Result "0-1"]
[ECO "C53"]
[WhiteElo "1539"]
[BlackElo "1438"]
[Annotator "NA RC"]
[PlyCount "114"]
[EventDate "2024.03.10"]
[EventType "swiss"]
[EventCountry "CZE"]
[SourceTitle "playchess.com"]
[Source "ChessBase"]
[SourceQuality "1"]
[TimeControl "40/5400+30:1800+30"]

1. e4 {[%emt 0:00:04]} e5 {[%emt 0:00:05]} 2. Nf3 {[%emt 0:00:06]} Nc6 {[%emt 0:00:18]} 3. Bc4 {[%emt 0:00:07]} Bc5 {[%emt 0:01:10]} 4. c3 {[%emt 0:00:35]} d6 {[%emt 0:01:42]} 5. d4 {[%emt 0:01:57]} Bb6 {[%emt 0:01:04]} 6. Nbd2 {[%emt 0:02:10]} exd4 {[%emt 0:03:51]} 7. cxd4 {[%emt 0:00:38]} Nxd4 {[%emt 0:00:32]} 8. Nxd4 {[%emt 0:00:29]} Bxd4 {[%emt 0:00:05]} 9. Qa4+ {[%emt 0:01:38]} Bd7 {[%emt 0:09:40]} 10. Bxf7+ {[%emt 0:00:13]} Kxf7 {[%emt 0:00:16]} 11. Qxd4 {[%emt 0:00:08]} Qf6 {[%emt 0:00:29]} 12. Qd5+ {[%emt 0:00:32]} Qe6 {[%emt 0:01:58]} 13. Qxb7 {[%emt 0:00:12]} Rc8 {[%emt 0:13:27]} 14. Qxa7 {[%emt 0:00:37]} Nf6 {[%emt 0:00:58]} 15. Qe3 {[%emt 0:01:13]} Rhe8 {[%emt 0:21:27]} 16. O-O {[%emt 0:00:35]} Kg8 {[%emt 0:00:48]} 17. Re1 {[%emt 0:00:28]} Ng4 {[%emt 0:04:44]} 18. Qg3 {[%emt 0:01:57]} d5 {[%emt 0:02:00]} 19. f3 {[%emt 0:01:16]} Qb6+ {[%emt 0:01:55]} 20. Kf1 {[%emt 0:00:21]} Bb5+ {[%emt 0:01:32]} 21. Re2 {[%emt 0:01:00]} Bxe2+ {[%emt 0:04:26]} 22. Kxe2 {[%emt 0:00:22]} Qb5+ {[%emt 0:01:48]} 23. Ke1 {[%emt 0:01:03]} Ne3 {[%emt 0:00:50]} 24. b3 {[%emt 0:02:25]} Nc2+ {[%emt 0:00:31]} 25. Kd1 {[%emt 0:00:15]} Nxa1 {[%emt 0:00:48]} 26. Bb2 {[%emt 0:00:06]} g6 {[%emt 0:00:08]} 27. Qg5 {[%emt 0:01:58]} Qc6 {[%emt 0:02:35]} 28. Bxa1 {[%emt 0:00:54]} dxe4 {[%emt 0:01:29]} 29. Qh6 {[%emt 0:03:14]} Qd7 {[%emt 0:00:37]} 30. fxe4 {[%emt 0:02:09]} Rf8 {[%emt 0:03:10]} 31. Kc2 {[%emt 0:01:05]} Rcd8 {[%emt 0:03:26]} 32. Bc3 {[%emt 0:01:09]} Rf2 {[%emt 0:03:23]} 33. a4 {[%emt 0:00:38]} Qd3+ {[%emt 0:01:00]} 34. Kb2 {[%emt 0:01:01]} Rxd2+ {[%emt 0:00:23]} 35. Bxd2 {[%emt 0:00:14]} Qxd2+ {[%emt 0:00:13]} 36. Qxd2 {[%emt 0:00:35]} Rxd2+ {[%emt 0:00:05]} 37. Ka3 {[%emt 0:00:05]} Rd8 {[%emt 0:00:57]} 38. a5 {[%emt 0:00:18]} Ra8 {[%emt 0:00:07]} 39. Ka4 {[%emt 0:00:06]} Kf7 {[%emt 0:00:35]} 40. b4 {[%emt 0:00:25]} Ke7 {[%emt 0:02:24]} 41. Kb5 {[%emt 0:30:15]} Kd7 {[%emt 0:30:22]} 42. Kc5 {[%emt 0:01:51]} Rb8 {[%emt 0:04:06]} 43. b5 {[%emt 0:02:44]} h5 {[%emt 0:04:43]} 44. e5 {[%emt 0:00:38]} Re8 {[%emt 0:02:30]} 45. Kd5 {[%emt 0:00:18]} Re6 {[%emt 0:00:00]} 46. a6 {[%emt 0:00:00]} c6+ {[%emt 0:00:00]} 47. bxc6+ {[%emt 0:00:00]} Rxc6 {[%emt 0:00:00]} 48. a7 {[%emt 0:00:00]} Ra6 {[%emt 0:00:00]} 49. e6+ {[%emt 0:00:00]} Ke7 {[%emt 0:00:00]} 50. Ke5 {[%emt 0:00:00]} Ra5+ {[%emt 0:00:00]} 51. Kf4 {[%emt 0:00:00]} Kxe6 {[%emt 0:00:00]} 52. h4 {[%emt 0:00:00]} Kf6 {[%emt 0:00:00]} 53. Kg3 {[%emt 0:00:00]} Rxa7 {[%emt 0:00:00]} 54. Kh3 {[%emt 0:00:00]} Ra3+ {[%emt 0:00:00]} 55. g3 {[%emt 0:00:00]} g5 {[%emt 0:00:00]} 56. hxg5+ {[%emt 0:00:00]} Kxg5 {[%emt 0:00:00]} 57. Kg2 {[%emt 0:00:00]} Kg4 {[%emt 0:00:00]} 0-1

[Event "Czech Youth U14 Girls 2024"]
[Site "Kouty nad Desnou"]
[Date "2024.03.11"]
[Round "4.11"]
[White "Myronova, Sofia"]
[Black "Archlebova, Iva"]
[Result "1/2-1/2"]
[ECO "C46"]
[WhiteElo "1456"]
[BlackElo "1488"]
[Annotator "NA RC"]
[PlyCount "99"]
[EventDate "2024.03.10"]
[EventType "swiss"]
[EventCountry "CZE"]
[SourceTitle "playchess.com"]
[Source "ChessBase"]
[SourceQuality "1"]
[TimeControl "40/5400+30:1800+30"]

1. e4 e5 {[%emt 0:00:09]} 2. Nf3 {[%emt 0:00:14]} Nc6 {[%emt 0:00:28]} 3. Nc3 {[%emt 0:00:19]} Bb4 {[%emt 0:01:24]} 4. Bb5 {[%emt 0:00:33]} d6 {[%emt 0:00:18]} 5. h3 {[%emt 0:00:14]} Nf6 {[%emt 0:00:47]} 6. d3 {[%emt 0:00:31]} h6 {[%emt 0:01:59]} 7. O-O {[%emt 0:00:50]} O-O {[%emt 0:01:43]} 8. Be3 {[%emt 0:01:59]} a6 {[%emt 0:00:58]} 9. Bc4 {[%emt 0:03:04]} Qe7 {[%emt 0:03:41]} 10. Nd2 {[%emt 0:02:18]} Be6 {[%emt 0:04:07]} 11. Bb3 {[%emt 0:00:45]} Rad8 {[%emt 0:01:43]} 12. Nf3 {[%emt 0:04:39]} Bxc3 {[%emt 0:04:04]} 13. bxc3 {[%emt 0:00:31]} d5 {[%emt 0:01:22]} 14. exd5 {[%emt 0:02:25]} Bxd5 {[%emt 0:00:31]} 15. Bxd5 {[%emt 0:04:42]} Nxd5 {[%emt 0:01:03]} 16. c4 {[%emt 0:00:39]} Nxe3 {[%emt 0:00:53]} 17. fxe3 {[%emt 0:00:23]} e4 {[%emt 0:05:44]} 18. Ne1 {[%emt 0:02:38]} exd3 {[%emt 0:01:15]} 19. cxd3 {[%emt 0:00:10]} Qxe3+ {[%emt 0:01:34]} 20. Kh1 {[%emt 0:00:15]} Ne5 {[%emt 0:01:58]} 21. Qb3 {[%emt 0:01:03]} b6 {[%emt 0:14:15]} 22. Qa3 {[%emt 0:02:45]} a5 {[%emt 0:02:30]} 23. Qe7 {[%emt 0:00:53]} Qd4 {[%emt 0:06:31]} 24. Nc2 {[%emt 0:02:14]} Qc5 {[%emt 0:08:03]} 25. Qxc5 {[%emt 0:03:23]} bxc5 {[%emt 0:00:04]} 26. Rab1 {[%emt 0:00:14]} Nxd3 {[%emt 0:04:04]} 27. Rb7 {[%emt 0:00:37]} c6 {[%emt 0:01:28]} 28. Ra7 {[%emt 0:00:21]} Ra8 {[%emt 0:01:28]} 29. Rc7 {[%emt 0:00:49]} Ne5 {[%emt 0:00:42]} 30. Rf5 {[%emt 0:01:59]} f6 {[%emt 0:01:09]} 31. Ne3 {[%emt 0:01:01]} Rf7 {[%emt 0:00:58]} 32. Rxf7 {[%emt 0:01:23]} Kxf7 {[%emt 0:00:09]} 33. Kg1 {[%emt 0:00:36]} Rb8 {[%emt 0:02:47]} 34. Rf2 {[%emt 0:00:57]} Rb1+ {[%emt 0:02:01]} 35. Kh2 {[%emt 0:00:20]} Rb4 {[%emt 0:02:25]} 36. Rc2 {[%emt 0:00:45]} Ke6 {[%emt 0:01:25]} 37. Kg3 {[%emt 0:00:17]} g6 {[%emt 0:03:06]} 38. Kf2 {[%emt 0:02:23]} a4 {[%emt 0:02:47]} 39. Kg3 {[%emt 0:05:08]} h5 {[%emt 0:07:47]} 40. Kf2 {[%emt 0:01:23]} f5 {[%emt 0:06:28]} 41. g3 {[%emt 0:36:29]} g5 {[%emt 0:31:31]} 42. Ke1 {[%emt 0:02:57]} f4 {[%emt 0:01:55]} 43. gxf4 {[%emt 0:00:25]} gxf4 {[%emt 0:00:17]} 44. Ng2 {[%emt 0:00:24]} Rxc4 {[%emt 0:00:00]} 45. Rxc4 {[%emt 0:00:00]} Nxc4 {[%emt 0:00:00]} 46. Nxf4+ {[%emt 0:00:00]} Ke5 {[%emt 0:00:00]} 47. Nxh5 {[%emt 0:00:00]} Kd4 {[%emt 0:00:00]} 48. Kd1 {[%emt 0:00:00]} Kc3 {[%emt 0:00:00]} 49. Kc1 {[%emt 0:00:00]} Ne3 {[%emt 0:00:12]} 50. Nf6 {[%emt 0:00:00]} 1/2-1/2

[Event "Czech Youth U14 Girls 2024"]
[Site "Kouty nad Desnou"]
[Date "2024.03.11"]
[Round "4.12"]
[White "Vaclavkova, Klara"]
[Black "Kratka, Tereza"]
[Result "0-1"]
[ECO "D11"]
[WhiteElo "1486"]
[BlackElo "1477"]
[Annotator "NA RC"]
[PlyCount "76"]
[EventDate "2024.03.10"]
[EventType "swiss"]
[EventCountry "CZE"]
[SourceTitle "playchess.com"]
[Source "ChessBase"]
[SourceQuality "1"]
[TimeControl "40/5400+30:1800+30"]

1. d4 {[%emt 0:00:02]} d5 {[%emt 0:00:03]} 2. c4 {[%emt 0:00:02]} c6 {[%emt 0:00:05]} 3. Nf3 {[%emt 0:00:12]} Bg4 {[%emt 0:00:56]} 4. Nc3 {[%emt 0:00:48]} e6 {[%emt 0:01:47]} 5. cxd5 {[%emt 0:01:21]} cxd5 {[%emt 0:00:12]} 6. Bf4 {[%emt 0:00:21]} Nc6 {[%emt 0:00:23]} 7. Rc1 {[%emt 0:00:59]} Nf6 {[%emt 0:01:03]} 8. e3 {[%emt 0:01:21]} Be7 {[%emt 0:01:08]} 9. Bd3 {[%emt 0:00:17]} O-O {[%emt 0:00:11]} 10. h3 {[%emt 0:00:41]} Bh5 {[%emt 0:00:51]} 11. O-O {[%emt 0:01:38]} a6 {[%emt 0:00:41]} 12. Re1 {[%emt 0:01:08]} h6 {[%emt 0:02:52]} 13. e4 dxe4 {[%emt 0:00:27]} 14. Nxe4 {[%emt 0:01:19]} Bxf3 {[%emt 0:01:31]} 15. Qxf3 {[%emt 0:02:33]} Qxd4 {[%emt 0:02:09]} 16. b3 {[%emt 0:01:53]} Qb6 {[%emt 0:05:47]} 17. Qg3 {[%emt 0:01:16]} Kh8 {[%emt 0:03:12]} 18. Nxf6 {[%emt 0:06:01]} Bxf6 {[%emt 0:00:25]} 19. Bc7 {[%emt 0:04:25]} Qa7 {[%emt 0:03:22]} 20. Re4 {[%emt 0:04:19]} Rfc8 {[%emt 0:02:47]} 21. Rcc4 {[%emt 0:04:37]} Ne7 {[%emt 0:01:31]} 22. Qd6 {[%emt 0:11:21]} Nd5 {[%emt 0:04:25]} 23. Ba5 {[%emt 0:08:43]} b6 {[%emt 0:03:34]} 24. Rxc8+ {[%emt 0:09:51]} Rxc8 {[%emt 0:00:16]} 25. Bd2 {[%emt 0:01:18]} Rd8 {[%emt 0:01:13]} 26. Qa3 {[%emt 0:02:12]} a5 {[%emt 0:01:21]} 27. Qc1 {[%emt 0:03:49]} Qb7 {[%emt 0:02:55]} 28. Bxh6 {[%emt 0:02:19]} Nb4 {[%emt 0:05:02]} 29. Bb1 {[%emt 0:09:44]} Nxa2 {[%emt 0:01:05]} 30. Bxg7+ {[%emt 0:01:07]} Bxg7 {[%emt 0:01:44]} 31. Rh4+ {[%emt 0:00:15]} Kg8 {[%emt 0:00:50]} 32. Bxa2 {[%emt 0:01:15]} Qd5 {[%emt 0:00:54]} 33. Qc2 {[%emt 0:04:55]} Qd1+ {[%emt 0:01:02]} 34. Qxd1 {[%emt 0:00:02]} Rxd1+ {[%emt 0:00:08]} 35. Kh2 {[%emt 0:00:06]} Rd2 {[%emt 0:00:06]} 36. Bb1 {[%emt 0:00:25]} Rb2 {[%emt 0:01:36]} 37. Bh7+ {[%emt 0:00:51]} Kf8 {[%emt 0:00:25]} 38. Rf4 {[%emt 0:01:03]} Be5 {[%emt 0:00:30]} 0-1

[Event "Czech Youth U14 Girls 2024"]
[Site "Kouty nad Desnou"]
[Date "2024.03.11"]
[Round "4.13"]
[White "Pruskova, Justyna"]
[Black "Martinkovicova, Nela"]
[Result "0-1"]
[ECO "C42"]
[WhiteElo "1471"]
[BlackElo "1476"]
[Annotator "NA RC"]
[PlyCount "110"]
[EventDate "2024.03.10"]
[EventType "swiss"]
[EventCountry "CZE"]
[SourceTitle "playchess.com"]
[Source "ChessBase"]
[SourceQuality "1"]
[TimeControl "40/5400+30:1800+30"]

1. e4 {[%emt 0:00:03]} e5 {[%emt 0:00:09]} 2. Nf3 {[%emt 0:00:12]} Nf6 {[%emt 0:00:13]} 3. Bc4 {[%emt 0:00:12]} d5 {[%emt 0:01:26]} 4. exd5 {[%emt 0:03:17]} Nxd5 {[%emt 0:02:49]} 5. O-O {[%emt 0:06:05]} Nc6 {[%emt 0:01:18]} 6. Nc3 {[%emt 0:00:45]} Nxc3 {[%emt 0:01:17]} 7. dxc3 {[%emt 0:00:21]} Qxd1 {[%emt 0:00:55]} 8. Rxd1 {[%emt 0:00:17]} Bd6 {[%emt 0:01:20]} 9. Re1 {[%emt 0:01:17]} O-O {[%emt 0:00:39]} 10. Be3 {[%emt 0:04:35]} Bf5 {[%emt 0:03:19]} 11. Bb3 {[%emt 0:02:23]} Rad8 {[%emt 0:03:48]} 12. Rad1 {[%emt 0:01:41]} Be7 {[%emt 0:01:29]} 13. Rxd8 {[%emt 0:01:56]} Rxd8 {[%emt 0:00:26]} 14. Bg5 {[%emt 0:01:42]} Rd7 {[%emt 0:08:01]} 15. h3 {[%emt 0:01:10]} Bxg5 {[%emt 0:01:14]} 16. Nxg5 {[%emt 0:00:41]} Kf8 {[%emt 0:01:03]} 17. Nf3 {[%emt 0:01:39]} f6 {[%emt 0:00:54]} 18. Nh4 {[%emt 0:01:32]} Bg6 {[%emt 0:01:13]} 19. Nxg6+ {[%emt 0:00:51]} hxg6 {[%emt 0:00:07]} 20. Bc4 {[%emt 0:10:48]} Ne7 {[%emt 0:02:05]} 21. Bd3 {[%emt 0:01:59]} Nf5 {[%emt 0:00:53]} 22. Rd1 {[%emt 0:01:55]} Ke7 {[%emt 0:05:41]} 23. Be2 {[%emt 0:00:47]} Rxd1+ {[%emt 0:00:46]} 24. Bxd1 {[%emt 0:00:08]} b6 {[%emt 0:00:39]} 25. b4 {[%emt 0:00:17]} Kd6 {[%emt 0:00:22]} 26. c4 {[%emt 0:00:56]} c5 {[%emt 0:01:31]} 27. b5 {[%emt 0:00:53]} Nd4 {[%emt 0:00:45]} 28. c3 {[%emt 0:00:27]} Ne6 {[%emt 0:00:49]} 29. g3 {[%emt 0:00:53]} g5 {[%emt 0:00:40]} 30. Kg2 {[%emt 0:00:54]} Nd8 {[%emt 0:01:10]} 31. Kf3 {[%emt 0:00:43]} f5 {[%emt 0:00:23]} 32. Ke3 {[%emt 0:01:16]} Nb7 {[%emt 0:00:27]} 33. Be2 {[%emt 0:00:17]} Ke6 {[%emt 0:01:16]} 34. f4 {[%emt 0:02:01]} gxf4+ {[%emt 0:01:42]} 35. gxf4 {[%emt 0:00:17]} exf4+ {[%emt 0:00:09]} 36. Kxf4 {[%emt 0:00:20]} Kf6 {[%emt 0:00:18]} 37. Bf3 {[%emt 0:01:54]} g5+ {[%emt 0:00:44]} 38. Kg3 {[%emt 0:00:58]} Nd6 {[%emt 0:00:30]} 39. Bd5 {[%emt 0:03:08]} Ke5 {[%emt 0:02:11]} 40. Kf3 {[%emt 0:01:20]} Nc8 {[%emt 0:02:01]} 41. Ke3 {[%emt 0:33:08]} Ne7 {[%emt 0:31:48]} 42. Bf3 {[%emt 0:01:12]} Ng6 {[%emt 0:02:21]} 43. Kf2 {[%emt 0:02:11]} Nf4 {[%emt 0:01:16]} 44. Kg3 {[%emt 0:00:59]} Nxh3 {[%emt 0:04:40]} 45. Kh2 {[%emt 0:04:44]} Kf4 {[%emt 0:02:55]} 46. Kg2 {[%emt 0:01:08]} g4 {[%emt 0:01:13]} 47. Bd5 {[%emt 0:00:34]} Kg5 {[%emt 0:01:46]} 48. Kg3 {[%emt 0:03:21]} f4+ {[%emt 0:00:52]} 49. Kg2 {[%emt 0:01:55]} Kh4 {[%emt 0:01:12]} 50. Bc6 {[%emt 0:03:39]} Ng5 {[%emt 0:01:03]} 51. Bd5 {[%emt 0:02:05]} f3+ {[%emt 0:01:32]} 52. Kh2 {[%emt 0:01:18]} g3+ {[%emt 0:01:07]} 53. Kh1 {[%emt 0:00:34]} g2+ {[%emt 0:03:36]} 54. Kh2 {[%emt 0:01:16]} Nh3 {[%emt 0:00:31]} 55. Bxf3 {[%emt 0:01:03]} g1=Q# {[%emt 0:00:16]} 0-1

[Event "Czech Youth U14 Girls 2024"]
[Site "Kouty nad Desnou"]
[Date "2024.03.12"]
[Round "5.1"]
[White "Bartova, Hana"]
[Black "Kozusnikova, Daniela"]
[Result "1-0"]
[ECO "C42"]
[WhiteElo "1667"]
[BlackElo "1809"]
[Annotator "NA RC"]
[PlyCount "101"]
[EventDate "2024.03.10"]
[EventType "swiss"]
[EventCountry "CZE"]
[SourceTitle "playchess.com"]
[Source "ChessBase"]
[SourceQuality "1"]
[TimeControl "40/5400+30:1800+30"]

1. e4 {[%emt 0:00:05]} e5 {[%emt 0:00:07]} 2. Nf3 {[%emt 0:00:06]} Nf6 {[%emt 0:00:10]} 3. Nxe5 {[%emt 0:00:06]} d6 {[%emt 0:00:02]} 4. Nf3 {[%emt 0:00:08]} Nxe4 {[%emt 0:00:03]} 5. Nc3 {[%emt 0:01:25]} Nxc3 {[%emt 0:01:14]} 6. dxc3 {[%emt 0:00:06]} Be7 {[%emt 0:03:16]} 7. Be3 {[%emt 0:01:44]} Nc6 {[%emt 0:02:39]} 8. Qd2 {[%emt 0:01:31]} Be6 {[%emt 0:02:37]} 9. O-O-O {[%emt 0:02:39] C42: Petroff Defence: 3 Nxe5 and unusual White 3rd moves.} Qd7 {[%emt 0:01:39]} 10. h3 {[%emt 0:04:54]} a6 {[%emt 0:02:11]} 11. Ng5 {[%emt 0:01:41]} Bf5 {[%emt 0:08:08]} 12. g4 {[%emt 0:05:07]} Bg6 {[%emt 0:01:19]} 13. Bg2 {[%emt 0:01:16]} h6 {[%emt 0:01:48]} 14. Ne4 {[%emt 0:00:39]} O-O-O {[%emt 0:00:40]} 15. b3 {[%emt 0:07:47]} f5 {[%emt 0:09:35]} 16. Ng3 {[%emt 0:07:07]} fxg4 {[%emt 0:01:51]} 17. hxg4 {[%emt 0:00:27]} Kb8 {[%emt 0:00:58]} 18. Ne2 {[%emt 0:25:26]} Bf6 {[%emt 0:19:26]} 19. g5 {[%emt 0:09:27]} hxg5 {[%emt 0:02:08]} 20. Bxg5 {[%emt 0:00:26]} Bxg5 {[%emt 0:13:29]} 21. Qxg5 {[%emt 0:00:13]} Qf5 {[%emt 0:00:36]} 22. Qxf5 {[%emt 0:01:35]} Bxf5 {[%emt 0:00:05]} 23. Bxc6 {[%emt 0:00:32]} bxc6 {[%emt 0:00:03]} 24. Nd4 {[%emt 0:00:10]} Bd7 {[%emt 0:01:03]} 25. Rde1 {[%emt 0:05:51]} c5 {[%emt 0:03:47]} 26. Ne2 {[%emt 0:10:59]} Rxh1 {[%emt 0:05:48]} 27. Rxh1 {[%emt 0:00:03]} Rf8 {[%emt 0:00:27]} 28. Rh2 {[%emt 0:01:44]} g6 {[%emt 0:07:49]} 29. c4 {[%emt 0:01:07]} Rf5 {[%emt 0:03:34]} 30. Nc3 {[%emt 0:04:15]} Be6 {[%emt 0:03:26]} 31. Rg2 {[%emt 0:00:48]} Bf7 {[%emt 0:02:11]} 32. Kd2 {[%emt 0:02:06]} Kb7 {[%emt 0:01:27]} 33. Ne4 {[%emt 0:02:07]} Be8 {[%emt 0:00:57]} 34. Rg5 {[%emt 0:01:04]} Rxg5 {[%emt 0:01:18]} 35. Nxg5 $11 {[%emt 0:00:06]} Kc6 {[%emt 0:01:00]} 36. Ne4 {[%emt 0:01:03]} Bd7 {[%emt 0:00:39]} 37. Nf6 {[%emt 0:00:34]} Bf5 {[%emt 0:00:22]} 38. f3 {[%emt 0:01:00]} Kb6 {[%emt 0:00:54]} 39. Nd5+ {[%emt 0:00:15]} Kb7 {[%emt 0:00:33]} 40. Ne7 {[%emt 0:00:10]} c6 {[%emt 0:00:27]} 41. Nxf5 {[%emt 0:30:12]} gxf5 {[%emt 0:30:04]} 42. Ke3 {[%emt 0:00:07]} Kb6 {[%emt 0:00:00]} 43. Kf4 {[%emt 0:00:00]} Ka5 {[%emt 0:00:00]} 44. a3 {[%emt 0:00:00]} d5 {[%emt 0:00:00]} 45. cxd5 {[%emt 0:00:00]} cxd5 {[%emt 0:00:00]} 46. Kxf5 {[%emt 0:00:00]} c4 {[%emt 0:00:00]} 47. Ke5 {[%emt 0:00:00]} c3 {[%emt 0:00:00]} 48. Kxd5 {[%emt 0:00:00]} Kb5 {[%emt 0:00:00]} 49. f4 {[%emt 0:00:00]} a5 {[%emt 0:00:00]} 50. f5 {[%emt 0:00:00]} a4 {[%emt 0:00:00]} 51. b4 {[%emt 0:00:00]} 1-0

[Event "Czech Youth U14 Girls 2024"]
[Site "Kouty nad Desnou"]
[Date "2024.03.12"]
[Round "5.2"]
[White "Horkova, Tereza"]
[Black "Bouchalova, Kveta"]
[Result "1-0"]
[ECO "C58"]
[WhiteElo "1845"]
[BlackElo "1627"]
[Annotator "NA RC"]
[PlyCount "85"]
[EventDate "2024.03.10"]
[EventType "swiss"]
[EventCountry "CZE"]
[SourceTitle "playchess.com"]
[Source "ChessBase"]
[SourceQuality "1"]
[TimeControl "40/5400+30:1800+30"]

1. e4 {[%emt 0:00:03]} e5 {[%emt 0:00:03]} 2. Nf3 {[%emt 0:00:08]} Nc6 {[%emt 0:00:03]} 3. Bc4 {[%emt 0:00:09]} Nf6 {[%emt 0:00:04]} 4. Ng5 {[%emt 0:00:11]} d5 {[%emt 0:00:05]} 5. exd5 {[%emt 0:00:15]} Na5 {[%emt 0:00:03]} 6. Bb5+ {[%emt 0:00:10]} c6 {[%emt 0:00:07]} 7. dxc6 {[%emt 0:00:06]} bxc6 {[%emt 0:00:03]} 8. Bd3 {[%emt 0:00:12]} Nd5 {[%emt 0:00:12] C58: Two Knights: 4 Ng5 d5 5 exd5 Na5 sidelines.} 9. Nf3 {[%emt 0:00:12]} Bd6 {[%emt 0:00:10]} 10. O-O {[%emt 0:00:25]} O-O {[%emt 0:00:17]} 11. Re1 {[%emt 0:00:18]} f5 {[%emt 0:00:16]} 12. Nxe5 {[%emt 0:01:52]} Qf6 {[%emt 0:01:26]} 13. Nc4 {[%emt 0:06:46]} Nxc4 {[%emt 0:17:05]} 14. Bxc4 {[%emt 0:00:02]} Qh4 {[%emt 0:01:35]} 15. Bxd5+ {[%emt 0:00:28]} cxd5 {[%emt 0:00:08]} 16. g3 {[%emt 0:01:51]} Qd4 {[%emt 0:07:06]} ({Black should try} 16... Qh3 $15 17. f4 d4) 17. c3 {[%emt 0:02:56]} Qf6 {[%emt 0:01:32]} 18. f4 $1 {[%emt 0:04:42]} g5 {[%emt 0:05:45] [#]} 19. d4 $1 {[%emt 0:00:19]} gxf4 {[%emt 0:11:04]} 20. Bxf4 {[%emt 0:01:34]} Bxf4 {[%emt 0:01:11]} 21. gxf4 {[%emt 0:00:02]} Qh4 {[%emt 0:02:02]} 22. Qd2 {[%emt 0:02:30]} Kh8 {[%emt 0:04:13]} 23. Kh1 {[%emt 0:01:57]} Bb7 {[%emt 0:08:42]} ({Besser ist} 23... Ba6 $1 $14 24. c4 Rae8) 24. Na3 {[%emt 0:01:32]} Rae8 {[%emt 0:04:20]} 25. Rxe8 {[%emt 0:20:13]} Rxe8 {[%emt 0:00:07]} 26. Rg1 {[%emt 0:01:28]} Qh6 {[%emt 0:05:57]} (26... Ba6 $16 {might work better.} 27. Qg2 (27. Nc2 $2 Re2 $19) 27... Qe7) 27. Nb5 {[%emt 0:10:18]} Ba6 {[%emt 0:07:03]} 28. a4 {[%emt 0:00:23]} Qf8 {[%emt 0:01:19]} 29. Qg2 {[%emt 0:04:29]} (29. Nxa7 $2 {loses.} Re2 30. Nc6 Rxd2 $19) 29... Re7 {[%emt 0:01:38]} 30. b4 {[%emt 0:06:14]} (30. Qxd5 $2 {verliert.} Bb7 $19) 30... Bc8 {[%emt 0:06:23]} 31. Nd6 {[%emt 0:06:10]} (31. Qxd5 $2 {is the wrong capture.} Bb7 $19) 31... Be6 {[%emt 0:01:34] [#]} 32. c4 $1 {[%emt 0:05:57]} dxc4 {[%emt 0:02:11]} 33. d5 {[%emt 0:00:15]} Bc8 {[%emt 0:07:26]} (33... Bg8 $18 34. Nxc4 (34. Qb2+ Rg7 $16) 34... h6) 34. Nxc4 {[%emt 0:04:41]} (34. Qb2+ $142 Rg7 35. Nxc8 Qf7 36. Qe5 (36. Qxg7+ Qxg7 37. Rxg7 Kxg7 $18) 36... Qg6 37. Rxg6 hxg6 38. d6 (38. Nxa7 Kh7 $18) (38. Qe8+ Rg8 $18) 38... Kh7 39. Ne7 (39. Qc3 Rg8 $18)) 34... Bb7 {[%emt 0:02:50]} 35. Qb2+ $18 {[%emt 0:01:30]} Rg7 $18 {[%emt 0:01:04]} 36. Ne3 {[%emt 0:01:08]} Qf7 {[%emt 0:01:35]} 37. Qxg7+ {[%emt 0:01:40]} Qxg7 {[%emt 0:00:05]} 38. Rxg7 {[%emt 0:00:08]} Kxg7 {[%emt 0:00:02]} 39. Nxf5+ {[%emt 0:00:13]} Kg6 {[%emt 0:00:58]} 40. Ne3 {[%emt 0:00:35]} Kh5 {[%emt 0:00:28]} 41. h3 {[%emt 0:30:35]} Kh4 {[%emt 0:30:36]} 42. Kh2 {[%emt 0:00:08]} Bc8 {[%emt 0:01:45]} 43. d6 {[%emt 0:00:30]} 1-0